[Event "*** Titled Tuesday Blitz"]
[Site "Chess.com"]
[Date "2021.03.16"]
[Round "8"]
[White "ChelsieMonica"]
[Black "mjray79"]
[Result "0-1"]
[WhiteElo "2349"]
[BlackElo "2474"]
[TimeControl "180+1"]
[EndTime "11:27:30 PDT"]
[Termination "mjray79 won by resignation"]

1. c4 {[%clk 0:03:00.9]} 1... Nf6 {[%clk 0:02:59.3]} 2. Nf3 {[%clk 0:02:57.7]}
2... g6 {[%clk 0:02:59.7]} 3. g3 {[%clk 0:02:53.4]} 3... Bg7 {[%clk 0:02:59.3]}
4. Bg2 {[%clk 0:02:54.3]} 4... O-O {[%clk 0:02:58.9]} 5. O-O {[%clk 0:02:55.2]}
5... d6 {[%clk 0:02:55]} 6. d4 {[%clk 0:02:55.5]} 6... Nc6 {[%clk 0:02:52.8]} 7.
d5 {[%clk 0:02:55.2]} 7... Na5 {[%clk 0:02:51.2]} 8. Na3 {[%clk 0:02:54]} 8...
c5 {[%clk 0:02:50]} 9. dxc6 {[%clk 0:02:50.7]} 9... Nxc6 {[%clk 0:02:49]} 10.
Nb5 {[%clk 0:02:47.6]} 10... a6 {[%clk 0:02:44.8]} 11. Nbd4 {[%clk 0:02:47.2]}
11... Bd7 {[%clk 0:02:45.3]} 12. h3 {[%clk 0:02:45.6]} 12... Rb8 {[%clk
0:02:41.6]} 13. Be3 {[%clk 0:02:44.8]} 13... Nxd4 {[%clk 0:02:41.1]} 14. Bxd4
{[%clk 0:02:44.3]} 14... b5 {[%clk 0:02:41.4]} 15. cxb5 {[%clk 0:02:30.8]} 15...
axb5 {[%clk 0:02:42.3]} 16. Rc1 {[%clk 0:02:30.6]} 16... Rc8 {[%clk 0:02:41.3]}
17. Qd3 {[%clk 0:02:25.2]} 17... Qa5 {[%clk 0:02:33.1]} 18. a3 {[%clk
0:02:22.7]} 18... b4 {[%clk 0:02:32.2]} 19. axb4 {[%clk 0:02:17.8]} 19... Qxb4
{[%clk 0:02:33.1]} 20. Bc3 {[%clk 0:02:17.2]} 20... Qb3 {[%clk 0:02:32]} 21. Nd4
{[%clk 0:02:13.5]} 21... Qb6 {[%clk 0:02:32.1]} 22. Ra1 {[%clk 0:02:04.3]} 22...
e5 {[%clk 0:02:29]} 23. Nc2 {[%clk 0:01:59.6]} 23... Bf5 {[%clk 0:02:15.4]} 24.
Qd2 {[%clk 0:01:59.6]} 24... Ne4 {[%clk 0:02:12.4]} 25. Bxe4 {[%clk 0:01:56.6]}
25... Bxe4 {[%clk 0:02:13.3]} 26. Ne3 {[%clk 0:01:53.8]} 26... d5 {[%clk
0:02:07.1]} 27. Nxd5 {[%clk 0:01:50.9]} 27... Qe6 {[%clk 0:02:07.2]} 28. Ne3
{[%clk 0:01:15.6]} 28... Qxh3 {[%clk 0:02:03.5]} 29. f3 {[%clk 0:01:14.8]} 29...
Qxg3+ {[%clk 0:02:03.2]} 30. Ng2 {[%clk 0:01:14.7]} 30... Bc6 {[%clk 0:01:58.9]}
31. Ra7 {[%clk 0:01:09.9]} 31... Rfd8 {[%clk 0:01:54.1]} 32. Qe3 {[%clk
0:01:09.7]} 32... h5 {[%clk 0:01:45.1]} 33. Be1 {[%clk 0:01:03.2]} 33... Qh3
{[%clk 0:01:45]} 34. Bh4 {[%clk 0:01:02.3]} 34... Rd7 {[%clk 0:01:40.9]} 35.
Rxd7 {[%clk 0:00:57.6]} 35... Bxd7 {[%clk 0:01:41.8]} 36. Rd1 {[%clk 0:00:57.1]}
36... Be6 {[%clk 0:01:35.5]} 37. Qg5 {[%clk 0:00:51.1]} 37... Qf5 {[%clk
0:01:33.7]} 38. Rd8+ {[%clk 0:00:50.2]} 38... Rxd8 {[%clk 0:01:33.5]} 39. Qxd8+
{[%clk 0:00:51.1]} 39... Kh7 {[%clk 0:01:33.9]} 40. b4 {[%clk 0:00:46.3]} 40...
Qb1+ {[%clk 0:01:33]} 41. Be1 {[%clk 0:00:44.3]} 41... e4 {[%clk 0:01:26.8]} 42.
Kh2 {[%clk 0:00:38.9]} 42... exf3 {[%clk 0:01:24.6]} 43. exf3 {[%clk 0:00:39.8]}
43... Be5+ {[%clk 0:01:19.4]} 44. f4 {[%clk 0:00:39.2]} 44... Bxf4+ {[%clk
0:01:19.7]} 45. Nxf4 {[%clk 0:00:40.1]} 45... Qxe1 {[%clk 0:01:19.4]} 46. Qf6
{[%clk 0:00:34.8]} 46... Qf2+ {[%clk 0:01:11.4]} 47. Kh1 {[%clk 0:00:34.5]}
47... Qe1+ {[%clk 0:00:58.6]} 48. Kh2 {[%clk 0:00:33.3]} 48... Qxb4 {[%clk
0:00:57.9]} 49. Nxe6 {[%clk 0:00:32.6]} 49... Qd2+ {[%clk 0:00:57.1]} 50. Kh1
{[%clk 0:00:23.6]} 50... Qe1+ {[%clk 0:00:56.8]} 0-1

[Event "*** Titled Tuesday Blitz"]
[Site "Chess.com"]
[Date "2021.03.16"]
[Round "8"]
[White "DenLaz"]
[Black "FairChess_on_YouTube"]
[Result "1-0"]
[WhiteElo "2861"]
[BlackElo "2969"]
[TimeControl "180+1"]
[EndTime "11:27:31 PDT"]
[Termination "DenLaz won by resignation"]

1. d4 {[%clk 0:03:00.6]} 1... Nf6 {[%clk 0:02:59.6]} 2. c4 {[%clk 0:03:00.8]}
2... e6 {[%clk 0:03:00.1]} 3. Nf3 {[%clk 0:03:01.2]} 3... b6 {[%clk 0:02:58.5]}
4. g3 {[%clk 0:03:00.8]} 4... Bb7 {[%clk 0:02:58.8]} 5. Bg2 {[%clk 0:03:00.7]}
5... g6 {[%clk 0:02:59.1]} 6. O-O {[%clk 0:02:59.4]} 6... Bg7 {[%clk 0:02:59.3]}
7. Nc3 {[%clk 0:02:59.6]} 7... Ne4 {[%clk 0:02:59]} 8. Nxe4 {[%clk 0:02:59.7]}
8... Bxe4 {[%clk 0:02:59.8]} 9. Bg5 {[%clk 0:02:59.7]} 9... f6 {[%clk
0:02:58.2]} 10. Bf4 {[%clk 0:02:53.2]} 10... O-O {[%clk 0:02:57.4]} 11. Rc1
{[%clk 0:02:49.8]} 11... f5 {[%clk 0:02:52.1]} 12. Qd2 {[%clk 0:02:43.4]} 12...
d6 {[%clk 0:02:38.6]} 13. Rfd1 {[%clk 0:02:33.2]} 13... Qe8 {[%clk 0:02:27.6]}
14. Bh6 {[%clk 0:02:23.3]} 14... Nd7 {[%clk 0:02:24.9]} 15. Bxg7 {[%clk
0:02:19.6]} 15... Kxg7 {[%clk 0:02:25.8]} 16. c5 {[%clk 0:02:09.1]} 16... bxc5
{[%clk 0:02:12.9]} 17. dxc5 {[%clk 0:02:10]} 17... d5 {[%clk 0:02:13.2]} 18.
Qc3+ {[%clk 0:02:02.1]} 18... Nf6 {[%clk 0:02:06.2]} 19. Ne5 {[%clk 0:01:57.4]}
19... Bxg2 {[%clk 0:02:05.7]} 20. Kxg2 {[%clk 0:01:58.3]} 20... Qb5 {[%clk
0:02:05]} 21. b3 {[%clk 0:01:54.4]} 21... a5 {[%clk 0:01:52.3]} 22. Nf3 {[%clk
0:01:45.9]} 22... Rae8 {[%clk 0:01:20.7]} 23. Qe5 {[%clk 0:01:43.7]} 23... Re7
{[%clk 0:01:19]} 24. Nd4 {[%clk 0:01:40.9]} 24... Qa6 {[%clk 0:01:16.3]} 25. c6
{[%clk 0:01:35]} 25... Kf7 {[%clk 0:01:16.2]} 26. f3 {[%clk 0:01:34.1]} 26...
Rb8 {[%clk 0:01:12]} 27. Rc3 {[%clk 0:01:31.1]} 27... Ne8 {[%clk 0:00:44.5]} 28.
Re3 {[%clk 0:01:26]} 28... Ng7 {[%clk 0:00:44.5]} 29. h4 {[%clk 0:01:19.4]}
29... a4 {[%clk 0:00:43.9]} 30. g4 {[%clk 0:01:08.4]} 30... axb3 {[%clk
0:00:40.8]} 31. axb3 {[%clk 0:01:09.3]} 31... Ra8 {[%clk 0:00:33.2]} 32. h5
{[%clk 0:01:04.4]} 32... Qc8 {[%clk 0:00:22.8]} 33. h6 {[%clk 0:01:02.1]} 33...
Ne8 {[%clk 0:00:22.5]} 34. gxf5 {[%clk 0:01:01.4]} 34... gxf5 {[%clk 0:00:22.5]}
35. Nxf5 {[%clk 0:00:59.3]} 35... Nf6 {[%clk 0:00:22.8]} 36. Nxe7 {[%clk
0:00:50.6]} 36... Kxe7 {[%clk 0:00:23.7]} 37. Kf2 {[%clk 0:00:29.7]} 37... Qf8
{[%clk 0:00:23.8]} 38. Qxe6+ {[%clk 0:00:28.4]} 38... Kd8 {[%clk 0:00:24.3]} 39.
Rxd5+ {[%clk 0:00:27.6]} 1-0

[Event "*** Titled Tuesday Blitz"]
[Site "Chess.com"]
[Date "2021.03.16"]
[Round "8"]
[White "GMKrikor"]
[Black "mbojan"]
[Result "1-0"]
[WhiteElo "2763"]
[BlackElo "2646"]
[TimeControl "180+1"]
[EndTime "11:27:33 PDT"]
[Termination "GMKrikor won on time"]

1. Nf3 {[%clk 0:03:00.9]} 1... g6 {[%clk 0:02:58]} 2. c4 {[%clk 0:03:01]} 2...
Bg7 {[%clk 0:02:57.2]} 3. e4 {[%clk 0:02:58.8]} 3... c5 {[%clk 0:02:55.3]} 4. d4
{[%clk 0:02:58.4]} 4... cxd4 {[%clk 0:02:51.9]} 5. Nxd4 {[%clk 0:02:59.3]} 5...
Nc6 {[%clk 0:02:50]} 6. Be3 {[%clk 0:02:59.3]} 6... Nf6 {[%clk 0:02:49.9]} 7.
Nc3 {[%clk 0:02:58.8]} 7... d6 {[%clk 0:02:49.3]} 8. Be2 {[%clk 0:02:56.6]} 8...
O-O {[%clk 0:02:49.2]} 9. O-O {[%clk 0:02:55.1]} 9... Bd7 {[%clk 0:02:46.4]} 10.
h3 {[%clk 0:02:54.6]} 10... Nxd4 {[%clk 0:02:28.2]} 11. Bxd4 {[%clk 0:02:55.5]}
11... Bc6 {[%clk 0:02:28.4]} 12. Qc2 {[%clk 0:02:55.1]} 12... a6 {[%clk
0:02:06.2]} 13. Rad1 {[%clk 0:02:45.5]} 13... Qc7 {[%clk 0:02:04.9]} 14. b4
{[%clk 0:02:41]} 14... Rac8 {[%clk 0:01:50.8]} 15. Qd3 {[%clk 0:02:37.1]} 15...
Bd7 {[%clk 0:01:37.3]} 16. Rc1 {[%clk 0:02:28.1]} 16... Qb8 {[%clk 0:01:16.7]}
17. f4 {[%clk 0:02:00.5]} 17... e5 {[%clk 0:00:27.9]} 18. fxe5 {[%clk
0:01:54.9]} 18... dxe5 {[%clk 0:00:28.8]} 19. Be3 {[%clk 0:01:54.2]} 19... Be6
{[%clk 0:00:28]} 20. Nd5 {[%clk 0:01:50.8]} 20... Bxd5 {[%clk 0:00:18.9]} 21.
exd5 {[%clk 0:01:15.8]} 21... e4 {[%clk 0:00:19.8]} 22. Qd2 {[%clk 0:01:14.9]}
22... Nd7 {[%clk 0:00:15.9]} 23. c5 {[%clk 0:01:10.5]} 23... Ne5 {[%clk
0:00:11.2]} 24. d6 {[%clk 0:01:09.8]} 24... Rcd8 {[%clk 0:00:10.1]} 25. Qd5
{[%clk 0:01:09.5]} 25... Qc8 {[%clk 0:00:07.3]} 26. Qxe4 {[%clk 0:01:07.8]}
26... Rfe8 {[%clk 0:00:07.4]} 27. Qd5 {[%clk 0:01:07.8]} 27... Kh8 {[%clk
0:00:07.6]} 28. Bg5 {[%clk 0:01:06.6]} 28... f6 {[%clk 0:00:06.9]} 29. Bxf6
{[%clk 0:00:49.3]} 29... Bxf6 {[%clk 0:00:07.8]} 30. Rxf6 {[%clk 0:00:50]} 30...
Nc6 {[%clk 0:00:07.9]} 31. Bg4 {[%clk 0:00:46.2]} 31... Qb8 {[%clk 0:00:02.1]}
32. a3 {[%clk 0:00:43.2]} 32... Re5 {[%clk 0:00:02.1]} 33. Qf3 {[%clk
0:00:42.7]} 33... Rg8 {[%clk 0:00:02]} 34. Qc3 {[%clk 0:00:41.2]} 34... Qe8
{[%clk 0:00:01.7]} 35. Rcf1 {[%clk 0:00:40.8]} 1-0

[Event "*** Titled Tuesday Blitz"]
[Site "Chess.com"]
[Date "2021.03.16"]
[Round "8"]
[White "The_filthy"]
[Black "AttilaTurzo"]
[Result "0-1"]
[WhiteElo "2303"]
[BlackElo "2533"]
[TimeControl "180+1"]
[EndTime "11:27:33 PDT"]
[Termination "AttilaTurzo won by resignation"]

1. e4 {[%clk 0:03:00.9]} 1... c5 {[%clk 0:02:59.8]} 2. Nf3 {[%clk 0:03:01.2]}
2... Nc6 {[%clk 0:02:59.8]} 3. d4 {[%clk 0:03:01.5]} 3... cxd4 {[%clk
0:03:00.7]} 4. Nxd4 {[%clk 0:03:02.1]} 4... Nf6 {[%clk 0:03:01]} 5. Nc3 {[%clk
0:03:02.5]} 5... d6 {[%clk 0:03:01.5]} 6. Bg5 {[%clk 0:03:01.4]} 6... e6 {[%clk
0:03:02]} 7. f4 {[%clk 0:03:01.7]} 7... h6 {[%clk 0:03:00.5]} 8. Bh4 {[%clk
0:02:49.9]} 8... Be7 {[%clk 0:02:56.3]} 9. Bf2 {[%clk 0:02:43.8]} 9... a6 {[%clk
0:02:52]} 10. Qd2 {[%clk 0:02:42.6]} 10... Ng4 {[%clk 0:02:40.6]} 11. Bg1 {[%clk
0:02:36.8]} 11... g5 {[%clk 0:02:38.1]} 12. h3 {[%clk 0:02:25.2]} 12... Nf6
{[%clk 0:02:36.5]} 13. g3 {[%clk 0:02:17.6]} 13... gxf4 {[%clk 0:02:22.2]} 14.
gxf4 {[%clk 0:02:15.7]} 14... Nh5 {[%clk 0:02:22.3]} 15. O-O-O {[%clk
0:02:00.2]} 15... Nxf4 {[%clk 0:02:20.5]} 16. Kb1 {[%clk 0:01:59.1]} 16... Ng6
{[%clk 0:02:13.4]} 17. Nxc6 {[%clk 0:01:46.2]} 17... bxc6 {[%clk 0:02:13.2]} 18.
e5 {[%clk 0:01:44.1]} 18... Nxe5 {[%clk 0:02:07.3]} 19. Ne4 {[%clk 0:01:44.1]}
19... d5 {[%clk 0:02:02.6]} 20. Bd4 {[%clk 0:01:22.5]} 20... dxe4 {[%clk
0:01:59.2]} 21. Bxe5 {[%clk 0:01:12.4]} 21... Qxd2 {[%clk 0:01:58.7]} 22. Rxd2
{[%clk 0:01:13.3]} 22... f6 {[%clk 0:01:57.4]} 23. Bc3 {[%clk 0:01:10.9]} 23...
Rg8 {[%clk 0:01:46.3]} 24. Bc4 {[%clk 0:01:07.3]} 24... f5 {[%clk 0:01:43.8]}
25. Rhd1 {[%clk 0:01:07.1]} 25... Ra7 {[%clk 0:01:29.7]} 26. Be5 {[%clk
0:01:04.8]} 26... Rd7 {[%clk 0:01:28.3]} 27. Rxd7 {[%clk 0:00:59.5]} 27... Bxd7
{[%clk 0:01:28.4]} 28. Bxa6 {[%clk 0:00:59.3]} 28... Rg2 {[%clk 0:01:17.9]} 29.
Bc4 {[%clk 0:00:55.8]} 29... c5 {[%clk 0:00:55.7]} 30. b3 {[%clk 0:00:50]} 30...
e3 {[%clk 0:00:51.4]} 31. a4 {[%clk 0:00:49.7]} 31... Bh4 {[%clk 0:00:44]} 32.
Bc3 {[%clk 0:00:29.9]} 32... e2 {[%clk 0:00:38.1]} 33. Rc1 {[%clk 0:00:30.1]}
33... f4 {[%clk 0:00:36.4]} 34. Be1 {[%clk 0:00:25.5]} 34... Bxe1 {[%clk
0:00:33.3]} 35. Rxe1 {[%clk 0:00:25.5]} 35... f3 {[%clk 0:00:33.8]} 36. Kb2
{[%clk 0:00:18.1]} 36... f2 {[%clk 0:00:25.8]} 0-1

[Event "*** Titled Tuesday Blitz"]
[Site "Chess.com"]
[Date "2021.03.16"]
[Round "8"]
[White "Matols"]
[Black "profofchess"]
[Result "0-1"]
[WhiteElo "2294"]
[BlackElo "2437"]
[TimeControl "180+1"]
[EndTime "11:27:40 PDT"]
[Termination "profofchess won by resignation"]

1. d4 {[%clk 0:03:00.9]} 1... Nf6 {[%clk 0:02:59.9]} 2. c4 {[%clk 0:03:00.8]}
2... e6 {[%clk 0:03:00.4]} 3. g3 {[%clk 0:03:00.3]} 3... c5 {[%clk 0:03:00.3]}
4. d5 {[%clk 0:03:00.1]} 4... exd5 {[%clk 0:03:00.6]} 5. cxd5 {[%clk 0:03:00.3]}
5... d6 {[%clk 0:03:01.5]} 6. Nc3 {[%clk 0:03:00.2]} 6... g6 {[%clk 0:03:01.4]}
7. Bg2 {[%clk 0:03:00.4]} 7... Bg7 {[%clk 0:03:01.7]} 8. Nf3 {[%clk 0:02:59.1]}
8... a6 {[%clk 0:03:01.8]} 9. a4 {[%clk 0:02:58.1]} 9... O-O {[%clk 0:03:01.5]}
10. O-O {[%clk 0:02:58.2]} 10... Re8 {[%clk 0:03:01.3]} 11. Nd2 {[%clk
0:02:58.3]} 11... Nbd7 {[%clk 0:02:59.1]} 12. h3 {[%clk 0:02:58.4]} 12... Rb8
{[%clk 0:02:51.1]} 13. Nc4 {[%clk 0:02:58.2]} 13... Ne5 {[%clk 0:02:50.8]} 14.
Na3 {[%clk 0:02:57.9]} 14... Nh5 {[%clk 0:02:46.6]} 15. e4 {[%clk 0:02:47.8]}
15... Bd7 {[%clk 0:02:05]} 16. f4 {[%clk 0:02:40.5]} 16... b5 {[%clk 0:02:04.9]}
17. axb5 {[%clk 0:02:37.7]} 17... axb5 {[%clk 0:02:05.8]} 18. fxe5 {[%clk
0:02:36.8]} 18... Bxe5 {[%clk 0:02:06.7]} 19. Bf4 {[%clk 0:02:17.8]} 19... Nxf4
{[%clk 0:01:56.2]} 20. gxf4 {[%clk 0:02:16.4]} 20... Bd4+ {[%clk 0:01:56.7]} 21.
Kh2 {[%clk 0:02:14.9]} 21... b4 {[%clk 0:01:55.8]} 22. Nc4 {[%clk 0:02:05.8]}
22... bxc3 {[%clk 0:01:48.3]} 23. Nxd6 {[%clk 0:01:59]} 23... cxb2 {[%clk
0:01:47]} 24. Rb1 {[%clk 0:01:56.1]} 24... Rf8 {[%clk 0:01:42.3]} 25. e5 {[%clk
0:01:44.5]} 25... Bf5 {[%clk 0:01:23.1]} 26. Nxf5 {[%clk 0:01:30.8]} 26... gxf5
{[%clk 0:01:24]} 27. Qh5 {[%clk 0:01:27.2]} 27... Kh8 {[%clk 0:01:15.6]} 28.
Qxf5 {[%clk 0:01:24]} 28... Rg8 {[%clk 0:01:15.4]} 29. Qxf7 {[%clk 0:01:12.7]}
29... Qh4 {[%clk 0:00:53.7]} 30. Rf3 {[%clk 0:01:02.8]} 30... Rbf8 {[%clk
0:00:43]} 31. Qe6 {[%clk 0:00:40.4]} 31... Rxf4 {[%clk 0:00:42.1]} 32. Rbf1
{[%clk 0:00:17.3]} 32... b1=Q {[%clk 0:00:34.4]} 33. Rxb1 {[%clk 0:00:13.8]}
33... Rxf3 {[%clk 0:00:31.7]} 34. Qxg8+ {[%clk 0:00:07.4]} 34... Kxg8 {[%clk
0:00:31]} 35. Bxf3 {[%clk 0:00:07.6]} 35... Bxe5+ {[%clk 0:00:26.5]} 36. Kg2
{[%clk 0:00:07.6]} 36... Qg3+ {[%clk 0:00:26.4]} 37. Kf1 {[%clk 0:00:07.7]}
37... Qxf3+ {[%clk 0:00:26.8]} 0-1

[Event "*** Titled Tuesday Blitz"]
[Site "Chess.com"]
[Date "2021.03.16"]
[Round "8"]
[White "ChessLover0108"]
[Black "Rodalquilar"]
[Result "1/2-1/2"]
[WhiteElo "2773"]
[BlackElo "2687"]
[TimeControl "180+1"]
[EndTime "11:27:43 PDT"]
[Termination "Game drawn by repetition"]

1. Nf3 {[%clk 0:03:00.9]} 1... d5 {[%clk 0:02:39.3]} 2. d4 {[%clk 0:03:00.6]}
2... Nf6 {[%clk 0:02:39.6]} 3. c4 {[%clk 0:03:00.9]} 3... e6 {[%clk 0:02:39.9]}
4. Nc3 {[%clk 0:03:01.5]} 4... a6 {[%clk 0:02:40]} 5. cxd5 {[%clk 0:03:01.2]}
5... exd5 {[%clk 0:02:40.9]} 6. Bg5 {[%clk 0:03:01.1]} 6... Be6 {[%clk
0:02:40.9]} 7. Qb3 {[%clk 0:03:01.5]} 7... Ra7 {[%clk 0:02:32]} 8. e3 {[%clk
0:02:59.5]} 8... Nbd7 {[%clk 0:02:31.2]} 9. Rd1 {[%clk 0:02:52.8]} 9... Bd6
{[%clk 0:02:30.5]} 10. Bd3 {[%clk 0:02:51.2]} 10... c6 {[%clk 0:02:30.5]} 11.
O-O {[%clk 0:02:50.2]} 11... h6 {[%clk 0:02:31]} 12. Bf4 {[%clk 0:02:49.9]}
12... Qc7 {[%clk 0:02:29.7]} 13. Rfe1 {[%clk 0:02:11.5]} 13... Bxf4 {[%clk
0:02:14.1]} 14. exf4 {[%clk 0:02:12.4]} 14... Qxf4 {[%clk 0:02:14.5]} 15. Qa3
{[%clk 0:02:11.9]} 15... Kd8 {[%clk 0:02:00]} 16. Rc1 {[%clk 0:01:55.1]} 16...
Re8 {[%clk 0:01:58.5]} 17. Qa5+ {[%clk 0:01:31]} 17... Qc7 {[%clk 0:01:53.1]}
18. Qa3 {[%clk 0:01:29.3]} 18... Qb8 {[%clk 0:01:40.9]} 19. Ne5 {[%clk
0:01:26.3]} 19... Nxe5 {[%clk 0:01:38.1]} 20. dxe5 {[%clk 0:01:27.2]} 20... Nd7
{[%clk 0:01:38.7]} 21. f4 {[%clk 0:01:27.7]} 21... f5 {[%clk 0:01:37.6]} 22.
exf6 {[%clk 0:01:23.9]} 22... Qxf4 {[%clk 0:01:29.6]} 23. fxg7 {[%clk
0:01:24.1]} 23... Qd4+ {[%clk 0:01:29.7]} 24. Kh1 {[%clk 0:01:21.3]} 24... Qxg7
{[%clk 0:01:17.5]} 25. Qa5+ {[%clk 0:00:57.8]} 25... b6 {[%clk 0:01:13.3]} 26.
Qa4 {[%clk 0:00:58.1]} 26... Nc5 {[%clk 0:01:08.2]} 27. Qxc6 {[%clk 0:00:57.9]}
27... Nxd3 {[%clk 0:01:07.6]} 28. Nxd5 {[%clk 0:00:26.8]} 28... Nf2+ {[%clk
0:00:14.2]} 29. Kg1 {[%clk 0:00:25.6]} 29... Nh3+ {[%clk 0:00:14.7]} 30. Kh1
{[%clk 0:00:24.9]} 30... Nf2+ {[%clk 0:00:14.5]} 31. Kg1 {[%clk 0:00:25.2]}
31... Nh3+ {[%clk 0:00:09.4]} 32. Kh1 {[%clk 0:00:17]} 32... Nf2+ {[%clk
0:00:06.9]} 1/2-1/2

[Event "*** Titled Tuesday Blitz"]
[Site "Chess.com"]
[Date "2021.03.16"]
[Round "8"]
[White "Fandorine"]
[Black "JimmmyZhang"]
[Result "0-1"]
[WhiteElo "2872"]
[BlackElo "2570"]
[TimeControl "180+1"]
[EndTime "11:27:47 PDT"]
[Termination "JimmmyZhang won by resignation"]

1. e4 {[%clk 0:03:00.9]} 1... c5 {[%clk 0:02:58.1]} 2. Nc3 {[%clk 0:02:57.2]}
2... Nc6 {[%clk 0:02:57.3]} 3. Bb5 {[%clk 0:02:56.6]} 3... Nd4 {[%clk
0:02:56.9]} 4. Nf3 {[%clk 0:02:56.7]} 4... Nxb5 {[%clk 0:02:53.8]} 5. Nxb5
{[%clk 0:02:56.4]} 5... a6 {[%clk 0:02:54.7]} 6. Nc3 {[%clk 0:02:56.3]} 6... e6
{[%clk 0:02:55.6]} 7. O-O {[%clk 0:02:54.8]} 7... b5 {[%clk 0:02:55.3]} 8. d4
{[%clk 0:02:55.2]} 8... cxd4 {[%clk 0:02:54.3]} 9. Qxd4 {[%clk 0:02:54.7]} 9...
Bb7 {[%clk 0:02:54.4]} 10. Bg5 {[%clk 0:02:54.9]} 10... Ne7 {[%clk 0:02:50.4]}
11. Rad1 {[%clk 0:02:54.1]} 11... f6 {[%clk 0:02:37.6]} 12. Bc1 {[%clk
0:02:48.5]} 12... Nc6 {[%clk 0:02:37.2]} 13. Qd3 {[%clk 0:02:42.3]} 13... Be7
{[%clk 0:02:37]} 14. a3 {[%clk 0:02:36]} 14... Qc7 {[%clk 0:02:32.8]} 15. Rfe1
{[%clk 0:02:33.4]} 15... b4 {[%clk 0:02:26.8]} 16. Nd5 {[%clk 0:02:19.9]} 16...
exd5 {[%clk 0:02:16]} 17. exd5 {[%clk 0:02:20.8]} 17... Ne5 {[%clk 0:02:16.6]}
18. Nxe5 {[%clk 0:02:13.8]} 18... fxe5 {[%clk 0:02:14.7]} 19. d6 {[%clk
0:02:14.2]} 19... Qc6 {[%clk 0:02:12.1]} 20. Qg3 {[%clk 0:02:04.5]} 20... Bf6
{[%clk 0:02:10.8]} 21. Rxe5+ {[%clk 0:01:55.3]} 21... Bxe5 {[%clk 0:02:06.7]}
22. Qxe5+ {[%clk 0:01:55.2]} 22... Kd8 {[%clk 0:02:03.1]} 23. f3 {[%clk
0:01:41.7]} 23... Kc8 {[%clk 0:02:00.7]} 24. Be3 {[%clk 0:01:23.6]} 24... Kb8
{[%clk 0:02:00.3]} 25. axb4 {[%clk 0:01:21.5]} 25... Qxc2 {[%clk 0:01:50]} 26.
Rc1 {[%clk 0:01:13.4]} 26... Qg6 {[%clk 0:01:49.8]} 27. Kf2 {[%clk 0:00:44]}
27... Re8 {[%clk 0:01:44.6]} 28. Qd4 {[%clk 0:00:32.9]} 28... Rc8 {[%clk
0:01:43.7]} 29. Rxc8+ {[%clk 0:00:20.7]} 29... Kxc8 {[%clk 0:01:36.6]} 30. Bf4
{[%clk 0:00:15.4]} 30... Bc6 {[%clk 0:01:19.4]} 31. Qb6 {[%clk 0:00:11.8]} 31...
Qc2+ {[%clk 0:01:19.6]} 32. Kg3 {[%clk 0:00:12.2]} 32... Bb5 {[%clk 0:01:20.1]}
33. Qd4 {[%clk 0:00:05.2]} 33... Kb7 {[%clk 0:01:17.3]} 34. Be3 {[%clk
0:00:05.3]} 34... Qc6 {[%clk 0:01:15.1]} 35. Bf4 {[%clk 0:00:05.1]} 35... g6
{[%clk 0:01:08.6]} 36. h4 {[%clk 0:00:05.5]} 36... Qc4 {[%clk 0:01:02.2]} 37.
Qe5 {[%clk 0:00:04.7]} 37... Rf8 {[%clk 0:00:52]} 38. Be3 {[%clk 0:00:04.7]}
38... Rf5 {[%clk 0:00:35.7]} 39. Qh8 {[%clk 0:00:05.2]} 39... Qe6 {[%clk
0:00:29.3]} 40. Qd4 {[%clk 0:00:05.2]} 40... Qe5+ {[%clk 0:00:29]} 0-1

[Event "*** Titled Tuesday Blitz"]
[Site "Chess.com"]
[Date "2021.03.16"]
[Round "8"]
[White "NoGuru"]
[Black "gxbg2000"]
[Result "1-0"]
[WhiteElo "2291"]
[BlackElo "1980"]
[TimeControl "180+1"]
[EndTime "11:27:47 PDT"]
[Termination "NoGuru won by resignation"]

1. Nf3 {[%clk 0:03:00.9]} 1... Nf6 {[%clk 0:02:59.5]} 2. c4 {[%clk 0:03:00.8]}
2... g6 {[%clk 0:03:00.1]} 3. Nc3 {[%clk 0:03:00.2]} 3... Bg7 {[%clk 0:03:00.7]}
4. e4 {[%clk 0:02:59.9]} 4... d6 {[%clk 0:03:00.5]} 5. d4 {[%clk 0:03:00.2]}
5... Nbd7 {[%clk 0:02:58.7]} 6. Be2 {[%clk 0:02:59.3]} 6... O-O {[%clk
0:02:58.3]} 7. O-O {[%clk 0:02:58.6]} 7... e5 {[%clk 0:02:58.5]} 8. Be3 {[%clk
0:02:58.8]} 8... b6 {[%clk 0:02:56.9]} 9. Rc1 {[%clk 0:02:52.7]} 9... exd4
{[%clk 0:02:56.2]} 10. Nxd4 {[%clk 0:02:48.9]} 10... Bb7 {[%clk 0:02:54.1]} 11.
f3 {[%clk 0:02:49.1]} 11... Nc5 {[%clk 0:02:54.3]} 12. Nd5 {[%clk 0:02:44.4]}
12... Bxd5 {[%clk 0:02:51.2]} 13. cxd5 {[%clk 0:02:43.9]} 13... Qd7 {[%clk
0:02:49.1]} 14. Bb5 {[%clk 0:02:37.2]} 14... Qc8 {[%clk 0:02:46]} 15. b4 {[%clk
0:02:32.7]} 15... Nb7 {[%clk 0:02:42.7]} 16. Qc2 {[%clk 0:02:20.1]} 16... a6
{[%clk 0:02:39.5]} 17. Bc6 {[%clk 0:02:04.1]} 17... Ra7 {[%clk 0:02:36.5]} 18.
a4 {[%clk 0:01:59.9]} 18... Nd8 {[%clk 0:02:34.4]} 19. a5 {[%clk 0:01:58.9]}
19... b5 {[%clk 0:02:27.7]} 20. Nxb5 {[%clk 0:01:49.1]} 20... Nxc6 {[%clk
0:02:26.9]} 21. Qxc6 {[%clk 0:01:40.4]} 21... Rb7 {[%clk 0:02:21.6]} 22. Nxc7
{[%clk 0:01:30.3]} 22... Rxb4 {[%clk 0:02:17.6]} 23. Qxd6 {[%clk 0:01:30.3]}
23... Rb3 {[%clk 0:02:14.5]} 24. Bg5 {[%clk 0:01:10]} 24... Ne8 {[%clk
0:02:05.8]} 25. Nxe8 {[%clk 0:01:08]} 25... Qxe8 {[%clk 0:02:05.4]} 26. Be7
{[%clk 0:01:03.5]} 26... Bd4+ {[%clk 0:01:44.7]} 27. Kh1 {[%clk 0:01:02.5]}
27... Bg7 {[%clk 0:01:31]} 28. Rc6 {[%clk 0:00:50.8]} 28... Rb2 {[%clk
0:01:08.7]} 29. Rfc1 {[%clk 0:00:38.7]} 29... Qb8 {[%clk 0:00:58.9]} 30. Bxf8
{[%clk 0:00:36.4]} 30... Bxf8 {[%clk 0:00:57.4]} 31. Qxb8 {[%clk 0:00:34.9]}
31... Rxb8 {[%clk 0:00:57.5]} 32. Rxa6 {[%clk 0:00:29.3]} 32... Kg7 {[%clk
0:00:55.8]} 33. g3 {[%clk 0:00:26.4]} 33... Rb2 {[%clk 0:00:53]} 34. Ra1 {[%clk
0:00:23.8]} 34... h5 {[%clk 0:00:51.5]} 35. Ra8 {[%clk 0:00:23.2]} 35... h4
{[%clk 0:00:50.8]} 36. a6 {[%clk 0:00:23.2]} 36... hxg3 {[%clk 0:00:50.5]} 37.
Rxf8 {[%clk 0:00:17.1]} 37... Kxf8 {[%clk 0:00:49.8]} 38. a7 {[%clk 0:00:16]}
38... Rxh2+ {[%clk 0:00:41.4]} 39. Kg1 {[%clk 0:00:15.8]} 39... Kg7 {[%clk
0:00:41.3]} 40. a8=Q {[%clk 0:00:16]} 40... Rf2 {[%clk 0:00:38.8]} 41. Qb8
{[%clk 0:00:14.9]} 41... Rxf3 {[%clk 0:00:37.3]} 42. Qe5+ {[%clk 0:00:14.8]}
42... Kh7 {[%clk 0:00:35.4]} 43. Kg2 {[%clk 0:00:14.6]} 43... Rf2+ {[%clk
0:00:34.4]} 44. Kxg3 {[%clk 0:00:14.8]} 44... Rc2 {[%clk 0:00:34.2]} 45. Rh1+
{[%clk 0:00:14.5]} 1-0